bitfinex-derivatives/quotes_BTCF0:USTF0_20250506
["timestamp","ask_amount","ask_price","bid_price","bid_amount"]
[1746512205920,0.3297414,94469.0,94468.0,0.519984]
[1746512208524,0.3297414,94469.0,94468.0,0.0967]
[1746512208710,0.3297414,94469.0,94468.0,0.519984]
[1746512212426,0.3297414,94469.0,94468.0,0.0967]
[1746512212629,0.3297414,94469.0,94468.0,0.519984]
[1746512217020,0.3931414,94469.0,94468.0,0.519984]
[1746512221231,0.2751414,94469.0,94468.0,0.519984]
[1746512235241,0.3931414,94469.0,94468.0,0.519984]
[1746512238227,0.2751414,94469.0,94468.0,0.7317276]
[1746512238426,0.3608,94479.0,94472.0,0.0529332]
[1746512238627,0.22283266,94490.0,94483.0,0.21171]
[1746512238832,0.2117061,94485.0,94483.0,0.634994]
[1746512239037,0.39989149,94484.0,94483.0,0.634994]
[1746512239644,0.39989149,94484.0,94483.0,0.697894]
[1746512241048,0.40389149,94484.0,94483.0,0.697894]
[1746512241437,0.40089149,94484.0,94483.0,0.697894]
[1746512241638,0.40089149,94484.0,94483.0,0.698894]
[1746512241944,0.2117078,94484.0,94483.0,0.700894]
[1746512248642,0.0634,94486.0,94483.0,0.700894]
[1746512248840,0.2751033,94486.0,94485.0,0.6349895]
[1746512250739,0.2751033,94486.0,94485.0,0.6359895]
[1746512251249,0.211682,94496.0,94495.0,0.2116809]
[1746512251463,0.211682,94496.0,94495.0,0.2761809]
[1746512251747,0.211682,94496.0,94495.0,0.6994649]
[1746512252153,0.0964,94497.0,94496.0,0.2116809]
[1746512252448,0.0634,94497.0,94496.0,0.67776782]
[1746512253948,0.0644,94497.0,94496.0,0.67776782]
[1746512254741,0.0664,94497.0,94496.0,0.67776782]
[1746512255345,0.003,94497.0,94496.0,0.67776782]
[1746512258347,0.001,94497.0,94496.0,0.67976782]
[1746512259252,0.2116724,94500.0,94499.0,0.2116741]
[1746512259452,0.2126605,94506.0,94505.0,0.2116607]
[1746512259654,0.2438605,94506.0,94505.0,0.9957447]
[1746512260153,0.3618605,94506.0,94505.0,0.9957447]
[1746512260451,0.3618605,94506.0,94505.0,1.0279447]
[1746512260952,0.3618605,94506.0,94505.0,1.0299447]
[1746512261149,0.3618605,94506.0,94505.0,1.0309447]
[1746512262348,0.1502,94506.0,94505.0,1.0309447]
[1746512265955,0.1502,94506.0,94505.0,1.0289447]
[1746512266257,0.2749916,94518.0,94517.0,0.2116338]
[1746512266455,0.2749916,94518.0,94517.0,0.6349178]
[1746512267158,0.3929916,94518.0,94517.0,0.6349178]
[1746512267456,0.3939916,94518.0,94517.0,0.6349178]
[1746512269859,0.3939916,94518.0,94517.0,0.2116338]
[1746512270045,0.3939916,94518.0,94517.0,0.6349178]
[1746512270250,0.3306316,94518.0,94517.0,0.6349178]
[1746512271355,0.3306316,94518.0,94517.0,0.6677178]
[1746512277551,0.119,94518.0,94517.0,0.6677178]
[1746512281665,0.3306316,94518.0,94517.0,0.6677178]
[1746512283361,0.119,94518.0,94517.0,0.6677178]
[1746512294271,0.119,94518.0,94517.0,0.25988218]
[1746512294470,0.119,94518.0,94517.0,0.68316618]
[1746512294666,0.119,94518.0,94517.0,0.6677178]
[1746512295468,0.119,94518.0,94517.0,1.0285178]
[1746512296565,0.119,94518.0,94517.0,1.0612178]
[1746512299273,0.119,94518.0,94517.0,0.6379338]
[1746512299472,0.119,94518.0,94517.0,1.0612178]
[1746512299975,0.119,94518.0,94517.0,1.07668938]
[1746512300771,0.119,94518.0,94517.0,1.0612178]
[1746512301784,0.119,94518.0,94517.0,1.07669832]
[1746512303686,0.119,94518.0,94517.0,0.65341432]
[1746512303886,0.119,94518.0,94517.0,1.07669832]
[1746512304287,0.119,94518.0,94517.0,1.0768076]
[1746512306995,0.119,94518.0,94517.0,0.6535236]
[1746512307892,0.119,94518.0,94517.0,0.65359605]
[1746512310281,0.119,94518.0,94517.0,2.15359605]
[1746512310483,0.2115961,94534.0,94527.0,0.0529023]
[1746512310685,0.0951,94535.0,94534.0,0.2115958]
[1746512310890,0.3066935,94535.0,94534.0,0.2115958]
[1746512311083,0.4246935,94535.0,94534.0,0.2429958]
[1746512311690,0.4546935,94535.0,94534.0,0.2746958]
[1746512311991,0.4556935,94535.0,94534.0,0.2746958]
[1746512312291,0.4556935,94535.0,94534.0,0.6979798]
[1746512312993,0.2128,94535.0,94534.0,0.70867618]
[1746512315594,0.149,94535.0,94534.0,0.70867618]
[1746512320391,0.3605935,94535.0,94534.0,0.70867618]
[1746512324004,0.3605935,94535.0,94534.0,0.28539218]
[1746512328399,0.3919935,94535.0,94534.0,0.28539218]
[1746512329208,0.3919935,94535.0,94534.0,0.70867618]
[1746512333205,0.3919935,94535.0,94534.0,0.28539218]
[1746512333405,0.3919935,94535.0,94534.0,0.70867618]
[1746512335810,0.3919935,94535.0,94534.0,0.423284]
[1746512341705,0.3919935,94535.0,94534.0,0.455584]
[1746512341906,0.3919935,94535.0,94534.0,0.486384]
[1746512343798,0.3605935,94535.0,94534.0,0.486384]
[1746512345318,0.149,94535.0,94534.0,0.0631]
[1746512345611,0.3605935,94535.0,94534.0,0.6979798]
[1746512354024,0.3605935,94535.0,94534.0,0.2746958]
[1746512359023,0.3605935,94535.0,94534.0,0.6979798]
[1746512366128,0.3605935,94535.0,94534.0,0.486384]
[1746512369227,0.3605935,94535.0,94534.0,0.6979798]
[1746512373332,0.3605935,94535.0,94534.0,0.2746958]
[1746512373530,0.3605935,94535.0,94534.0,0.6979798]
[1746512375831,0.3605935,94535.0,94534.0,0.2746958]
[1746512376030,0.3605935,94535.0,94534.0,0.6979798]
[1746512380235,0.3605935,94535.0,94534.0,0.2746958]
[1746512380535,0.3605935,94535.0,94534.0,0.6979798]
[1746512381037,0.3605935,94535.0,94534.0,0.486384]
[1746512384339,0.4240735,94535.0,94534.0,0.486384]
[1746512387655,0.4240735,94535.0,94534.0,0.0631]
[1746512387856,0.4240735,94535.0,94534.0,0.486384]
[1746512388955,0.4240735,94535.0,94534.0,0.517684]
[1746512390055,0.4241135,94535.0,94534.0,0.517684]
[1746512391156,0.4241135,94535.0,94534.0,0.0944]
[1746512391359,0.4241135,94535.0,94534.0,0.517684]
[1746512392256,0.4241135,94535.0,94534.0,0.7292798]
[1746512392759,0.18252,94535.0,94534.0,0.7292798]
[1746512393659,0.3941135,94535.0,94534.0,0.7292798]
[1746512394760,0.3941135,94535.0,94534.0,0.3059958]
[1746512394958,0.3941135,94535.0,94534.0,0.7292798]
[1746512395260,0.3305935,94535.0,94534.0,0.7292798]
[1746512398462,0.3305935,94535.0,94534.0,0.3059958]
[1746512398664,0.3305935,94535.0,94534.0,0.7292798]
[1746512402065,0.3305935,94535.0,94534.0,0.3059958]
[1746512402269,0.3630935,94535.0,94534.0,0.3059958]
[1746512404165,0.3630935,94535.0,94534.0,0.0944]
[1746512407070,0.3630935,94535.0,94534.0,0.517684]
[1746512407270,0.3630935,94535.0,94534.0,0.7292798]
[1746512407472,0.3630935,94535.0,94534.0,0.517684]
[1746512409973,0.3630935,94535.0,94534.0,0.7292798]
[1746512413974,0.3630935,94535.0,94534.0,0.3059958]
[1746512414166,0.3630935,94535.0,94534.0,0.7292798]
[1746512415677,0.3630935,94535.0,94534.0,0.3059958]
[1746512415868,0.3630935,94535.0,94534.0,0.7292798]
[1746512416167,0.4266135,94535.0,94534.0,0.7292798]
[1746512417079,0.4266135,94535.0,94534.0,0.74483724]
[1746512419174,0.4266135,94535.0,94534.0,0.74496778]
[1746512419377,0.4256135,94535.0,94534.0,0.74496778]
[1746512421579,0.4256135,94535.0,94534.0,0.7292798]
[1746512422178,0.4256135,94535.0,94534.0,0.74485838]
[1746512422877,0.4256135,94535.0,94534.0,0.74485871]
[1746512423178,0.4256135,94535.0,94534.0,0.7292798]
[1746512425479,0.4256135,94535.0,94534.0,0.517684]
[1746512431272,0.3620935,94535.0,94534.0,0.517684]
[1746512433783,0.3620935,94535.0,94534.0,0.0944]
[1746512433973,0.3620935,94535.0,94534.0,0.517684]
[1746512435284,0.3620935,94535.0,94534.0,0.0944]
[1746512435484,0.3620935,94535.0,94534.0,0.517684]
[1746512442685,0.3620935,94535.0,94534.0,0.0944]
[1746512442878,0.3620935,94535.0,94534.0,0.517684]
[1746512445388,0.3620935,94535.0,94534.0,0.0944]
[1746512445687,0.3620935,94535.0,94534.0,0.517684]
[1746512447188,0.3620935,94535.0,94534.0,0.0944]
[1746512447388,0.3620935,94535.0,94534.0,0.517684]
[1746512449889,0.3620935,94535.0,94534.0,0.0944]
[1746512450090,0.3620935,94535.0,94534.0,0.517684]
[1746512451392,0.3620935,94535.0,94534.0,0.0944]
[1746512451581,0.3620935,94535.0,94534.0,0.517684]
[1746512454196,0.3620935,94535.0,94534.0,0.0944]
[1746512454396,0.3620935,94535.0,94534.0,0.517684]
[1746512455497,0.3620935,94535.0,94534.0,0.0944]
[1746512455798,0.3620935,94535.0,94534.0,0.517684]
[1746512456501,0.4254935,94535.0,94534.0,0.517684]
[1746512460005,0.4254935,94535.0,94534.0,0.0944]
[1746512465109,0.4254935,94535.0,94534.0,0.517684]
[1746512466403,0.3620935,94535.0,94534.0,0.517684]
[1746512466604,0.2115958,94534.0,94533.0,0.07702]
[1746512466805,0.2753958,94534.0,94533.0,0.07702]
[1746512466999,0.2116114,94527.0,94526.0,0.01074194]
[1746512467200,0.2116114,94527.0,94522.0,0.0606]
[1746512467201,0.2116204,94523.0,94522.0,0.0606]
[1746512467606,0.2116204,94523.0,94522.0,0.6955066]
[1746512468108,0.3296204,94523.0,94522.0,0.483884]
[1746512469010,0.3296204,94523.0,94522.0,0.485884]
[1746512469209,0.3296204,94523.0,94522.0,0.6975066]
[1746512470510,0.3296204,94523.0,94522.0,0.6985066]
[1746512471909,0.3296204,94523.0,94522.0,0.70909425]
[1746512475716,0.3296204,94523.0,94522.0,0.28581025]
[1746512476010,0.3296204,94523.0,94522.0,0.70909425]
[1746512480317,0.3296204,94523.0,94522.0,0.28581025]
[1746512480512,0.3296204,94523.0,94522.0,0.70909425]
[1746512481217,0.3296204,94523.0,94522.0,0.73909425]
[1746512482624,0.3296204,94523.0,94522.0,1.09989425]
[1746512483626,0.3296204,94523.0,94522.0,0.73909425]
[1746512483827,0.3296204,94523.0,94522.0,1.09989425]
[1746512486227,0.3296204,94523.0,94522.0,0.67661025]
[1746512486430,0.3296204,94523.0,94522.0,1.09989425]
[1746512486619,0.3296204,94523.0,94522.0,0.73909425]
[1746512486819,0.3296204,94523.0,94522.0,1.09989425]
[1746512489127,0.3296204,94523.0,94522.0,0.67661025]
[1746512489329,0.3296204,94523.0,94522.0,1.09989425]
[1746512490433,0.3296204,94523.0,94522.0,0.67661025]
[1746512490632,0.3296204,94523.0,94522.0,1.09989425]
[1746512495137,0.3296204,94523.0,94522.0,0.67661025]
[1746512495336,0.3296204,94523.0,94522.0,1.09989425]
[1746512497340,0.3296204,94523.0,94522.0,0.73909425]
[1746512497538,0.3296204,94523.0,94522.0,1.09989425]
[1746512499536,0.3296204,94523.0,94522.0,0.67661025]
[1746512499736,0.3296204,94523.0,94522.0,1.09989425]
[1746512500435,0.3296204,94523.0,94522.0,0.3638]
[1746512500637,0.4989164,94523.0,94522.0,0.003]
[1746512500835,0.5623164,94523.0,94522.0,0.003]
[1746512502338,0.5623164,94523.0,94522.0,0.001]
[1746512502541,0.2116294,94519.0,94518.0,0.0604]
[1746512503137,0.3296294,94519.0,94518.0,0.0604]
[1746512504035,0.3611294,94519.0,94518.0,0.0604]
[1746512505547,0.2116428,94513.0,94512.0,0.031]
[1746512505745,0.2116428,94513.0,94512.0,0.063]
[1746512505947,0.2116428,94513.0,94512.0,0.486284]
[1746512506147,0.3296428,94513.0,94512.0,0.486284]
[1746512507348,0.3296428,94513.0,94512.0,0.517984]
[1746512512450,0.3606428,94513.0,94512.0,0.517984]
[1746512514352,0.3606428,94513.0,94512.0,0.0947]
[1746512514554,0.3606428,94513.0,94512.0,0.517984]
[1746512515650,0.3606428,94513.0,94512.0,0.0947]
[1746512515850,0.3606428,94513.0,94512.0,0.517984]
[1746512519251,0.3606428,94513.0,94512.0,0.0947]
[1746512519456,0.3606428,94513.0,94512.0,0.517984]
[1746512525359,0.3606428,94513.0,94512.0,0.0947]
[1746512525548,0.3606428,94513.0,94512.0,0.517984]
[1746512528860,0.3606428,94513.0,94512.0,0.0947]
[1746512529158,0.3606428,94513.0,94512.0,0.517984]
[1746512529959,0.3296428,94513.0,94512.0,0.517984]
[1746512532060,0.3296428,94513.0,94512.0,0.878784]
[1746512540663,0.3296428,94513.0,94512.0,0.4555]
[1746512540854,0.3296428,94513.0,94512.0,0.878784]
[1746512543363,0.3296428,94513.0,94512.0,0.4555]
[1746512543555,0.3296428,94513.0,94512.0,0.878784]
[1746512544956,0.3296428,94513.0,94512.0,1.090429]
[1746512545966,0.3296428,94513.0,94512.0,0.878784]
[1746512548870,0.3296428,94513.0,94512.0,0.4555]
[1746512549066,0.3296428,94513.0,94512.0,0.878784]
[1746512552588,0.3296428,94513.0,94512.0,0.4555]
[1746512552788,0.3296428,94513.0,94512.0,0.878784]
[1746512555293,0.3296428,94513.0,94512.0,0.4555]
[1746512555493,0.3296428,94513.0,94512.0,0.878784]
[1746512557992,0.3296428,94513.0,94512.0,0.517984]
[1746512558192,0.3296428,94513.0,94512.0,0.878784]
[1746512561296,0.3296428,94513.0,94512.0,0.517984]
[1746512561482,0.3296428,94513.0,94512.0,0.878784]
[1746512562693,0.3296428,94513.0,94512.0,0.4555]
[1746512562893,0.3296428,94513.0,94512.0,0.878784]
[1746512563091,0.2116428,94513.0,94512.0,1.090429]
[1746512565099,0.3296428,94513.0,94512.0,1.090429]
[1746512568800,0.3296428,94513.0,94512.0,0.667145]
[1746512568990,0.3296428,94513.0,94512.0,1.091429]
[1746512569695,0.3296428,94513.0,94512.0,1.090429]
[1746512573902,0.3296428,94513.0,94512.0,0.667145]
[1746512574201,0.3296428,94513.0,94512.0,1.090429]
[1746512579803,0.3296428,94513.0,94512.0,0.667145]
[1746512580101,0.3296428,94513.0,94512.0,1.090429]
[1746512581003,0.3296428,94513.0,94512.0,0.729629]
[1746512581204,0.3296428,94513.0,94512.0,1.090429]
[1746512583600,0.118,94513.0,94512.0,1.090429]
[1746512583794,0.06344,94534.0,94528.0,0.2645066]
[1746512583995,0.2645089,94529.0,94528.0,0.5724047]
[1746512584195,0.3825089,94529.0,94528.0,0.5724047]
[1746512584502,0.3825089,94529.0,94528.0,0.9956887]
[1746512587091,0.118,94529.0,94528.0,0.9956887]
[1746512587497,0.329607,94529.0,94528.0,0.9956887]
[1746512588299,0.211607,94529.0,94528.0,0.9976887]
[1746512589105,0.211607,94529.0,94528.0,0.9966887]
[1746512598315,0.329607,94529.0,94528.0,0.9966887]
[1746512598919,0.329607,94529.0,94528.0,0.3618]
[1746512599414,0.392307,94529.0,94528.0,0.3618]
[1746512601321,0.392307,94529.0,94528.0,0.3927]
[1746512602111,0.392307,94529.0,94528.0,0.4232]
[1746512603921,0.392307,94529.0,94528.0,0.0624]
[1746512604111,0.392307,94529.0,94528.0,0.4232]
[1746512605019,0.392307,94529.0,94528.0,0.4564]
[1746512608722,0.392307,94529.0,94528.0,0.4232]
[1746512619836,0.392307,94529.0,94528.0,0.3923]
[1746512620041,0.753107,94529.0,94528.0,0.001]
[1746512621035,0.2116092,94528.0,94527.0,0.07689]
[1746512621339,0.3482972,94528.0,94527.0,0.03458]
[1746512621539,0.0529045,94525.0,94517.0,0.0307]
[1746512621733,0.2116428,94513.0,94512.0,0.0317]
[1746512621934,0.2116428,94513.0,94512.0,0.517984]
[1746512622134,0.3296428,94513.0,94512.0,0.517984]
[1746512622536,0.2116652,94503.0,94491.0,0.3608]
[1746512622735,0.2116652,94503.0,94496.0,0.031]
[1746512623137,0.3296652,94503.0,94496.0,0.031]
[1746512623646,0.3931652,94503.0,94497.0,0.01089056]
[1746512623943,0.3931652,94503.0,94497.0,0.0309]
[1746512624146,0.3931652,94503.0,94502.0,0.00458726]
[1746512632355,0.3931652,94503.0,94502.0,0.06738726]
[1746512636051,0.3931652,94503.0,94502.0,0.49067126]
[1746512636952,0.3618652,94503.0,94502.0,0.49067126]
[1746512637843,0.3618652,94503.0,94502.0,0.85147126]
[1746512638451,0.3618652,94503.0,94502.0,1.06313866]
[1746512639153,0.3296652,94503.0,94502.0,1.06313866]
[1746512640042,0.2116652,94503.0,94502.0,1.06313866]
[1746512649059,0.3296652,94503.0,94502.0,1.06313866]
[1746512652656,0.118,94503.0,94502.0,1.06313866]
[1746512653056,0.2116602,94506.0,94505.0,0.2116607]
[1746512653260,0.2116602,94506.0,94505.0,0.9957447]
[1746512654069,0.2116602,94506.0,94505.0,0.9977447]
[1746512654268,0.3296602,94506.0,94505.0,1.0923447]
[1746512656463,0.3296602,94506.0,94505.0,0.6690607]
[1746512656669,0.3296602,94506.0,94505.0,1.0923447]
[1746512659973,0.3296602,94506.0,94505.0,0.6690607]
[1746512660170,0.3296602,94506.0,94505.0,1.0923447]
[1746512665086,0.3296602,94506.0,94505.0,0.6690607]
[1746512667277,0.3599602,94506.0,94505.0,0.6690607]
[1746512670081,0.3599602,94506.0,94505.0,1.0923447]
[1746512672882,0.3599602,94506.0,94505.0,0.6690607]
[1746512673073,0.3599602,94506.0,94505.0,1.0923447]
[1746512675685,0.3296602,94506.0,94505.0,1.0923447]
[1746512678185,0.3296602,94506.0,94505.0,0.6690607]
[1746512678385,0.3296602,94506.0,94505.0,1.0923447]
[1746512681387,0.3296602,94506.0,94505.0,0.6690607]
[1746512681684,0.3296602,94506.0,94505.0,1.0923447]
[1746512684387,0.3296602,94506.0,94505.0,0.6690607]
[1746512684586,0.3296602,94506.0,94505.0,1.0923447]
[1746512687388,0.3296602,94506.0,94505.0,0.6690607]
[1746512687579,0.3296602,94506.0,94505.0,1.0923447]
[1746512690592,0.3296602,94506.0,94505.0,0.6690607]
[1746512690791,0.3296602,94506.0,94505.0,1.0923447]
[1746512693492,0.118,94506.0,94505.0,1.0923447]
[1746512694094,0.085413,94509.0,94505.0,1.0923447]
[1746512694095,0.0529138,94508.0,94507.0,0.211654]
[1746512694484,0.0854138,94508.0,94507.0,0.634938]
[1746512695192,0.2970678,94508.0,94507.0,0.634938]
[1746512695795,0.2970678,94508.0,94507.0,0.635938]
[1746512696189,0.4150678,94508.0,94507.0,0.635938]
[1746512700599,0.4150678,94508.0,94507.0,0.212654]
[1746512700798,0.4150678,94508.0,94507.0,0.635938]
[1746512703717,0.4150678,94508.0,94507.0,0.212654]
[1746512704013,0.4150678,94508.0,94507.0,0.635938]
[1746512704512,0.4478678,94508.0,94507.0,0.635938]
[1746512708014,0.4478678,94508.0,94507.0,0.212654]
[1746512710916,0.4478678,94508.0,94507.0,0.245954]
[1746512711103,0.4478678,94508.0,94507.0,0.276354]
[1746512713008,0.4478678,94508.0,94507.0,0.699638]
[1746512713513,0.4478678,94508.0,94507.0,0.454684]
[1746512713702,0.4478678,94508.0,94507.0,0.424284]
[1746512714107,0.4478678,94508.0,94507.0,0.455784]
[1746512714316,0.4478678,94508.0,94507.0,0.6674402]
[1746512715620,0.4478678,94508.0,94507.0,0.2441562]
[1746512715805,0.4478678,94508.0,94507.0,0.6674402]
[1746512720219,0.4478678,94508.0,94507.0,0.2441562]
[1746512720424,0.4478678,94508.0,94507.0,0.6674402]
[1746512720822,0.4150678,94508.0,94507.0,0.7006402]
[1746512723528,0.4150678,94508.0,94507.0,0.2773562]
[1746512723723,0.4150678,94508.0,94507.0,0.7006402]
[1746512724828,0.4150678,94508.0,94507.0,0.2773562]
[1746512725029,0.4150678,94508.0,94507.0,0.7006402]
[1746512727227,0.4150678,94508.0,94507.0,0.2773562]
[1746512727422,0.4150678,94508.0,94507.0,0.7006402]
[1746512730131,0.4150678,94508.0,94507.0,0.2773562]
[1746512730432,0.4150678,94508.0,94507.0,0.7006402]
[1746512730632,0.4477678,94508.0,94507.0,0.7006402]
[1746512732931,0.4477678,94508.0,94507.0,0.2773562]
[1746512733233,0.4477678,94508.0,94507.0,0.7006402]
[1746512735434,0.4477678,94508.0,94507.0,0.2773562]
[1746512735626,0.4477678,94508.0,94507.0,0.7006402]
[1746512737231,0.4477678,94508.0,94507.0,0.2773562]
[1746512737433,0.4477678,94508.0,94507.0,0.7006402]
[1746512739435,0.4477678,94508.0,94507.0,1.0614402]
[1746512741236,0.4477678,94508.0,94507.0,0.6381562]
[1746512741531,0.4477678,94508.0,94507.0,1.0614402]
[1746512743033,0.4477678,94508.0,94507.0,0.849784]
[1746512744237,0.4477678,94508.0,94507.0,1.0614402]
[1746512745334,0.4477678,94508.0,94507.0,0.6381562]
[1746512745633,0.4477678,94508.0,94507.0,1.0614402]
[1746512747136,0.4477678,94508.0,94507.0,0.6381562]
[1746512747326,0.4477678,94508.0,94507.0,1.0614402]
[1746512748830,0.4477678,94508.0,94507.0,0.65470094]
[1746512749036,0.43453202,94508.0,94507.0,1.07798494]
[1746512749526,0.42394339,94508.0,94507.0,1.07798494]
[1746512750836,0.42394339,94508.0,94507.0,0.65470094]
[1746512751035,0.42394339,94508.0,94507.0,1.0614402]
[1746512753739,0.39124339,94508.0,94507.0,1.0614402]
[1746512753927,0.362154,94508.0,94507.0,1.0614402]
[1746512755138,0.329654,94508.0,94507.0,1.0614402]
[1746512756439,0.329654,94508.0,94507.0,0.6381562]
[1746512756737,0.329654,94508.0,94507.0,1.0614402]
[1746512757841,0.329654,94508.0,94507.0,0.6381562]
[1746512758132,0.329654,94508.0,94507.0,1.0614402]
[1746512759242,0.329654,94508.0,94507.0,0.6381562]
[1746512759542,0.329654,94508.0,94507.0,1.0614402]
[1746512760643,0.329654,94508.0,94507.0,0.6381562]
[1746512760833,0.329654,94508.0,94507.0,1.0614402]
[1746512763041,0.361554,94508.0,94507.0,1.0614402]
[1746512765445,0.361554,94508.0,94507.0,0.6381562]
[1746512765647,0.361554,94508.0,94507.0,1.0614402]
[1746512768449,0.361554,94508.0,94507.0,0.6381562]
[1746512768744,0.361554,94508.0,94507.0,1.0614402]
[1746512768943,0.361554,94508.0,94507.0,0.7006402]
[1746512769148,0.361554,94508.0,94507.0,1.0614402]
[1746512772243,0.361554,94508.0,94507.0,0.7006402]
[1746512772544,0.361554,94508.0,94507.0,1.0614402]
[1746512774453,0.361554,94508.0,94507.0,0.6381562]
[1746512774744,0.361554,94508.0,94507.0,1.0614402]
[1746512780049,0.361554,94508.0,94507.0,0.7006402]
[1746512780351,0.361554,94508.0,94507.0,1.0614402]
[1746512782655,0.118,94508.0,94507.0,0.6381562]
[1746512782843,0.0634,94515.0,94514.0,0.2116406]
[1746512783154,0.0529057,94522.0,94521.0,0.2116226]
[1746512783355,0.0529057,94522.0,94521.0,0.5724226]
[1746512783545,0.0529057,94522.0,94521.0,0.9957066]
[1746512783854,0.0529057,94522.0,94521.0,1.00639905]
[1746512784148,0.1709057,94522.0,94521.0,1.00639905]
[1746512784456,0.3825283,94522.0,94521.0,1.00639905]
[1746512784849,0.118,94522.0,94521.0,1.10169905]
[1746512785152,0.2116077,94529.0,94521.0,1.06098215]
[1746512785358,0.18818369,94530.0,94529.0,0.211607]
[1746512785662,0.39978839,94530.0,94529.0,0.572407]
[1746512785954,0.39978839,94530.0,94529.0,0.995691]
[1746512786351,0.39978839,94530.0,94529.0,1.058791]
[1746512788747,0.2116047,94530.0,94529.0,1.058791]
[1746512789856,0.0325,94531.0,94530.0,0.2116047]
[1746512790056,0.0325,94531.0,94530.0,0.6994887]
[1746512790448,0.0325,94531.0,94530.0,1.0602887]
[1746512791052,0.2441025,94531.0,94530.0,1.0602887]
[1746512793055,0.3621025,94531.0,94530.0,1.0602887]
[1746512794759,0.3621025,94531.0,94530.0,0.848684]
[1746512796449,0.3621025,94531.0,94530.0,0.817084]
[1746512806065,0.3621025,94531.0,94512.0,0.2116442]
[1746512806066,0.2116249,94521.0,94511.0,0.3608]
[1746512806367,0.2116406,94514.0,94513.0,0.0321]
[1746512806762,0.2116406,94514.0,94513.0,0.455384]
[1746512806966,0.211645,94512.0,94511.0,0.3608]
[1746512807159,0.211645,94512.0,94502.0,0.00158726]
[1746512807160,0.2116652,94503.0,94502.0,0.00158726]
[1746512808060,0.2731652,94503.0,94502.0,0.00158726]
[1746512808369,0.3911652,94503.0,94502.0,0.00158726]
[1746512809161,0.3911652,94503.0,94502.0,0.00358726]
[1746512809770,0.3911652,94503.0,94502.0,0.00458726]
[1746512810171,0.3911652,94503.0,94502.0,0.00358726]
[1746512810464,0.7519652,94503.0,94502.0,6e-08]
[1746512810668,0.2117145,94481.0,94480.0,0.0649]
[1746512810970,0.2117145,94481.0,94480.0,0.0645]
[1746512811173,0.3297145,94481.0,94480.0,0.455884]
[1746512812176,0.3297145,94481.0,94480.0,0.456884]
[1746512812670,0.3297145,94481.0,94480.0,0.0336]
[1746512814772,0.3307145,94481.0,94480.0,0.0326]
[1746512815569,0.3327145,94481.0,94480.0,0.0326]
[1746512833074,0.3327145,94481.0,94480.0,0.455884]
[1746512835482,0.3327145,94481.0,94480.0,0.0326]
[1746512835682,0.3327145,94481.0,94480.0,0.455884]
[1746512841092,0.3327145,94481.0,94480.0,0.0326]
[1746512841397,0.3327145,94481.0,94480.0,0.455884]
[1746512845001,0.6935145,94481.0,94480.0,0.423284]
[1746512845696,0.7570145,94481.0,94480.0,0.423284]
[1746512846790,0.2117212,94478.0,94477.0,0.0333]
[1746512846990,0.2117257,94476.0,94475.0,0.00105848]
[1746512847184,0.2117257,94476.0,94475.0,0.42434248]
[1746512847700,0.2727257,94476.0,94475.0,0.42434248]
[1746512848195,0.3907257,94476.0,94475.0,0.42434248]
[1746512849196,0.3927257,94476.0,94475.0,0.42434248]
[1746512857600,0.3927257,94476.0,94475.0,0.00105848]
[1746512857797,0.3927257,94476.0,94475.0,0.42434248]
[1746512862007,0.3927257,94476.0,94475.0,0.00105848]
[1746512863702,0.3620257,94476.0,94475.0,0.00105848]
[1746512864008,0.4254257,94476.0,94475.0,0.00105848]
[1746512867203,0.4254257,94476.0,94475.0,0.42434248]
[1746512873514,0.4254257,94476.0,94475.0,0.00105848]
[1746512873714,0.4254257,94476.0,94475.0,0.42434248]
[1746512879522,0.4254257,94476.0,94475.0,0.00105848]
[1746512879821,0.4254257,94476.0,94475.0,0.42434248]
[1746512880922,0.4254257,94476.0,94475.0,0.00105848]
[1746512881118,0.4254257,94476.0,94475.0,0.42434248]
[1746512884319,0.4254257,94476.0,94475.0,0.00105848]
[1746512884519,0.4254257,94476.0,94475.0,0.42434248]
[1746512885920,0.3951257,94476.0,94475.0,0.42434248]
[1746512886315,0.2771257,94476.0,94475.0,0.42434248]
[1746512887723,0.2771257,94476.0,94475.0,0.78514248]
[1746512891126,0.2761257,94476.0,94475.0,0.78514248]
[1746512891327,0.2771257,94476.0,94475.0,0.99687038]
[1746512892931,0.2761257,94476.0,94475.0,0.99687038]
[1746512893317,0.2751257,94476.0,94475.0,0.99687038]
[1746512897135,0.2751257,94476.0,94475.0,1.11487038]
[1746512898144,0.2751257,94476.0,94475.0,0.99687038]
[1746512900042,0.2751257,94476.0,94475.0,1.06197038]
[1746512903543,0.2751257,94476.0,94475.0,0.63868638]
[1746512903741,0.2751257,94476.0,94475.0,1.06197038]
[1746512912047,0.3071257,94476.0,94475.0,1.06197038]
[1746512916150,0.3071257,94476.0,94475.0,0.63868638]
[1746512916354,0.3071257,94476.0,94475.0,1.06197038]
[1746512926761,0.3071257,94476.0,94475.0,0.85024248]
[1746512927162,0.3071257,94476.0,94475.0,1.06197038]
[1746512927665,0.2437257,94476.0,94475.0,1.06197038]
[1746512931071,0.2437257,94476.0,94475.0,0.85024248]
[1746512931457,0.2437257,94476.0,94475.0,1.06197038]
[1746512934061,0.2437257,94476.0,94475.0,0.70117038]
[1746512950578,0.2437257,94476.0,94475.0,0.27788638]
[1746512950777,0.2437257,94476.0,94475.0,0.70117038]
[1746512953177,0.2437257,94476.0,94475.0,0.27788638]
[1746512953376,0.2437257,94476.0,94475.0,0.70117038]
[1746512956073,0.2437257,94476.0,94475.0,1.06197038]
[1746512957782,0.2437257,94476.0,94475.0,0.63868638]
[1746512957981,0.2437257,94476.0,94475.0,1.06197038]
[1746512958883,0.2437257,94476.0,94475.0,0.70117038]
[1746512959077,0.2437257,94476.0,94475.0,1.06197038]
[1746512959778,0.2437257,94476.0,94475.0,0.70117038]
[1746512959978,0.2437257,94476.0,94475.0,1.06197038]
[1746512960884,0.2437257,94476.0,94475.0,0.85024248]
[1746512961073,0.3617257,94476.0,94475.0,0.81814248]
[1746512961783,0.3617257,94476.0,94475.0,1.06227038]
[1746512964586,0.3617257,94476.0,94475.0,0.63898638]
[1746512964789,0.3617257,94476.0,94475.0,1.06227038]
[1746512965792,0.3617257,94476.0,94475.0,0.70147038]
[1746512965987,0.3617257,94476.0,94475.0,1.06227038]
[1746512967793,0.3617257,94476.0,94475.0,0.70147038]
[1746512967996,0.3617257,94476.0,94475.0,1.06227038]
[1746512968296,0.3617257,94476.0,94475.0,0.85054248]
[1746512970494,0.3617257,94476.0,94475.0,0.42725848]
[1746512970699,0.3617257,94476.0,94475.0,0.85054248]
[1746512972398,0.3617257,94476.0,94475.0,0.42725848]